bitfinex/quotes_BTCUSD_20240908
["timestamp","ask_amount","ask_price","bid_price","bid_amount"]
[1725781140840,0.129928,54639.0,54638.0,0.011]
[1725781141690,0.001815,54639.0,54638.0,0.011]
[1725781141908,0.129928,54639.0,54638.0,0.011]
[1725781142419,0.001815,54639.0,54638.0,0.011]
[1725781142676,0.129928,54639.0,54638.0,0.011]
[1725781143147,0.001815,54639.0,54638.0,0.011]
[1725781149764,0.001815,54639.0,54638.0,0.139115]
[1725781150190,0.001815,54639.0,54638.0,0.286915]
[1725781150421,0.001815,54639.0,54638.0,0.543146]
[1725781156624,0.001815,54639.0,54638.0,0.799377]
[1725781157537,0.001815,54639.0,54638.0,0.801007]
[1725781168528,0.001815,54639.0,54638.0,0.544776]
[1725781173087,0.001815,54639.0,54638.0,0.801007]
[1725781173943,0.001815,54639.0,54638.0,0.544776]
[1725781175954,0.001815,54639.0,54638.0,0.801007]
[1725781178854,0.001815,54639.0,54638.0,1.057238]
[1725781179067,0.001815,54639.0,54638.0,1.423469]
[1725781179304,0.001815,54639.0,54638.0,1.47813343]
[1725781179512,0.001815,54639.0,54638.0,1.423469]
[1725781179916,0.000815,54639.0,54638.0,1.417469]
[1725781180141,0.001815,54639.0,54638.0,1.418469]
[1725781180582,0.000815,54639.0,54638.0,1.426469]
[1725781180971,0.001815,54639.0,54638.0,1.440469]
[1725781181194,0.001815,54639.0,54638.0,1.430469]
[1725781183233,0.001815,54639.0,54638.0,1.43040401]
[1725781187969,0.000815,54653.0,54638.0,1.43040401]
[1725781187970,0.256118,54663.0,54648.0,0.01]
[1725781188219,0.023,54661.0,54655.0,0.128076]
[1725781188440,0.023,54661.0,54653.0,0.256159]
[1725781188441,0.023,54661.0,54653.0,0.0621]
[1725781188664,0.03705679,54662.0,54659.0,0.128066]
[1725781188877,0.03705679,54662.0,54660.0,0.128063]
[1725781189541,0.03705679,54662.0,54659.0,0.128065]
[1725781190509,0.03705679,54662.0,54660.0,0.128063]
[1725781191130,0.0093,54661.0,54660.0,0.128063]
[1725781191340,0.0093,54661.0,54659.0,0.128066]
[1725781193552,0.0113,54661.0,54654.0,0.256155]
[1725781193763,0.0093,54660.0,54654.0,0.128077]
[1725781193981,0.128067,54659.0,54655.0,0.128075]
[1725781194193,0.137364,54660.0,54655.0,0.128075]
[1725781195192,0.137364,54660.0,54656.0,0.128073]
[1725781195840,0.0093,54660.0,54659.0,0.001]
[1725781196419,0.0093,54660.0,54656.0,0.128073]
[1725781196926,0.0103,54660.0,54656.0,0.128073]
[1725781197452,0.137364,54660.0,54656.0,0.128073]
[1725781197675,0.141364,54660.0,54656.0,0.128073]
[1725781199045,0.137364,54660.0,54656.0,0.128073]
[1725781199519,0.138364,54660.0,54656.0,0.128073]
[1725781199755,0.128067,54659.0,54655.0,0.128075]
[1725781199961,0.0103,54660.0,54654.0,0.128076]
[1725781199962,0.128069,54658.0,54654.0,0.128076]
[1725781200465,0.128072,54657.0,54652.0,0.128081]
[1725781200691,0.128072,54657.0,54653.0,0.12808]
[1725781203917,0.129072,54657.0,54653.0,0.12808]
[1725781204619,0.001,54657.0,54654.0,0.268477]
[1725781206205,0.12807,54658.0,54654.0,0.268477]
[1725781206662,0.001,54657.0,54654.0,0.1404]
[1725781207342,0.128067,54659.0,54654.0,0.1404]
[1725781207771,0.002,54658.0,54654.0,0.268478]
[1725781207993,0.256125,54661.0,54655.0,0.128075]
[1725781208211,0.256125,54661.0,54654.0,0.1404]
[1725781208212,0.128066,54659.0,54654.0,0.1404]
[1725781208436,0.0093,54658.0,54653.0,0.00163]
[1725781208650,0.137371,54658.0,54653.0,0.12971]
[1725781208905,0.128076,54655.0,54653.0,0.00163]
[1725781209555,0.384215,54657.0,54653.0,0.00163]
[1725781209759,0.128072,54657.0,54653.0,0.00163]
[1725781209966,0.128074,54656.0,54653.0,0.00163]
[1725781210822,0.128074,54656.0,54653.0,0.00563]
[1725781211006,0.128074,54656.0,54653.0,0.00363]
[1725781212153,0.13737,54658.0,54653.0,0.00363]
[1725781212392,0.128072,54657.0,54654.0,0.0605]
[1725781212601,0.0093,54665.0,54656.0,0.128072]
[1725781212602,0.16511679,54662.0,54656.0,0.128072]
[1725781212823,0.16511679,54662.0,54657.0,0.128071]
[1725781213276,0.003,54658.0,54657.0,0.128071]
[1725781213721,0.003,54658.0,54655.0,0.332851]
[1725781213722,0.003,54658.0,54655.0,0.0767]
[1725781213931,0.128062,54661.0,54655.0,0.0767]
[1725781214150,0.128062,54661.0,54655.0,0.460928]
[1725781214151,0.002,54656.0,54655.0,0.460928]
[1725781214380,0.128062,54661.0,54657.0,0.128071]
[1725781214799,0.002,54658.0,54657.0,0.128071]
[1725781215262,0.16511679,54662.0,54657.0,0.128071]
[1725781215504,0.17011679,54662.0,54657.0,0.128071]
[1725781215711,0.16511679,54662.0,54657.0,0.128071]
[1725781216136,0.16511679,54662.0,54657.0,0.130071]
[1725781216581,0.16511679,54662.0,54657.0,0.128071]
[1725781216797,0.16511679,54662.0,54658.0,0.128067]
[1725781217021,0.03905679,54662.0,54658.0,0.128067]
[1725781217278,0.04105679,54662.0,54658.0,0.128067]
[1725781217479,0.03905679,54662.0,54658.0,0.128067]
[1725781217900,0.04105679,54662.0,54658.0,0.128067]
[1725781218091,0.16911679,54662.0,54658.0,0.128067]
[1725781218301,0.16511679,54662.0,54658.0,0.128067]
[1725781218832,0.16811679,54662.0,54658.0,0.128067]
[1725781219183,0.16711679,54662.0,54658.0,0.128067]
[1725781219425,0.03905679,54662.0,54655.0,0.0767]
[1725781219630,0.03905679,54662.0,54657.0,0.12807]
[1725781219631,0.128063,54661.0,54657.0,0.12807]
[1725781220051,0.04005679,54662.0,54657.0,0.12807]
[1725781220255,0.16711579,54662.0,54657.0,0.12807]
[1725781220734,0.16511579,54662.0,54657.0,0.12807]
[1725781220944,0.001,54661.0,54657.0,0.12807]
[1725781222932,0.129062,54661.0,54657.0,0.12807]
[1725781223590,0.128062,54661.0,54657.0,0.12807]
[1725781224104,0.0532,54658.0,54646.0,0.128096]
[1725781224312,0.13744861,54656.0,54638.0,0.00163]
[1725781224543,0.128088,54650.0,54645.0,0.128098]
[1725781224770,0.12809,54649.0,54643.0,0.128103]
[1725781225022,0.12809,54649.0,54643.0,0.128102]
[1725781225232,0.128087,54650.0,54643.0,0.128102]
[1725781225456,0.128087,54650.0,54642.0,0.256212]
[1725781225457,0.12809,54649.0,54644.0,0.128101]
[1725781226377,0.13744861,54651.0,54644.0,0.128101]
[1725781226598,0.128088,54650.0,54644.0,0.128101]
[1725781227021,0.128088,54650.0,54646.0,0.0614]
[1725781228804,0.12809,54649.0,54646.0,0.0634]
[1725781229912,0.12809,54649.0,54646.0,0.0664]
[1725781230346,0.13745907,54653.0,54648.0,0.128091]
[1725781230557,0.309342,54658.0,54647.0,0.1464]
[1725781230558,0.13745907,54656.0,54650.0,0.0639]
[1725781230785,0.128077,54655.0,54650.0,0.0639]
[1725781231014,0.128077,54655.0,54650.0,0.191987]
[1725781231261,0.256142,54658.0,54651.0,0.0825]
[1725781231732,0.128078,54655.0,54651.0,0.0825]
[1725781234061,0.131078,54655.0,54651.0,0.0825]
[1725781234545,0.131078,54655.0,54651.0,0.0835]
[1725781234759,0.131078,54655.0,54651.0,0.0825]
[1725781234992,0.135078,54655.0,54651.0,0.0825]
[1725781238340,0.16377344,54655.0,54651.0,0.0825]
[1725781238565,0.135078,54655.0,54651.0,0.0825]
[1725781241286,0.135078,54655.0,54651.0,0.08413]
[1725781241529,0.3011563,54655.0,54651.0,0.08413]
[1725781242662,0.13738285,54654.0,54651.0,0.08413]
[1725781243107,0.3011563,54655.0,54651.0,0.08413]
[1725781243328,0.13742114,54654.0,54651.0,0.08413]
[1725781243549,0.13742114,54653.0,54651.0,0.08413]
[1725781245530,0.13742114,54652.0,54651.0,0.08413]
[1725781246908,0.13842114,54653.0,54651.0,0.08413]
[1725781247564,0.13742114,54652.0,54651.0,0.08413]
[1725781249588,0.16611531,54652.0,54651.0,0.08413]
[1725781250017,0.16623523,54652.0,54651.0,0.08413]
[1725781251343,0.02869417,54652.0,54651.0,0.08413]
[1725781251555,0.16623523,54652.0,54651.0,0.08413]
[1725781253567,0.16625171,54652.0,54651.0,0.08413]
[1725781254877,0.256147,54656.0,54651.0,0.08413]
[1725781255305,0.28484113,54656.0,54651.0,0.08413]
[1725781255523,0.256147,54656.0,54651.0,0.08413]
[1725781255991,0.128077,54655.0,54651.0,0.08413]
[1725781256198,0.009,54656.0,54651.0,0.212214]
[1725781256408,0.128076,54655.0,54651.0,0.08413]
[1725781257499,0.131076,54655.0,54651.0,0.08413]
[1725781258764,0.16376982,54655.0,54651.0,0.08413]
[1725781259851,0.03569382,54655.0,54651.0,0.212214]
[1725781260068,0.16377082,54655.0,54651.0,0.08413]
[1725781260745,0.16377082,54655.0,54650.0,0.191986]
[1725781260746,0.29184682,54655.0,54650.0,0.01892359]
[1725781260967,0.128081,54653.0,54650.0,0.01892359]
[1725781261439,0.128081,54653.0,54645.0,0.257824]
[1725781261440,0.03569382,54655.0,54645.0,0.00163]
[1725781261719,0.03169382,54655.0,54654.0,0.128078]
[1725781261957,0.03269382,54655.0,54654.0,0.128078]
[1725781262178,0.03169382,54655.0,54654.0,0.128078]
[1725781262391,0.05839052,54655.0,54654.0,0.128078]
[1725781262685,0.05539052,54655.0,54654.0,0.127078]
[1725781262890,0.05539052,54655.0,54654.0,0.383234]
[1725781263110,0.05839052,54655.0,54654.0,0.383234]
[1725781263406,0.06239052,54655.0,54654.0,0.383234]
[1725781263885,0.06239052,54655.0,54654.0,0.526434]
[1725781265265,0.06239052,54655.0,54654.0,0.78259]
[1725781266388,0.0336967,54655.0,54654.0,0.78259]
[1725781269716,0.06238829,54655.0,54654.0,0.78259]
[1725781269945,0.06238829,54655.0,54654.0,1.294902]
[1725781270174,0.03569159,54655.0,54654.0,1.294902]
[1725781270620,0.03569159,54655.0,54654.0,1.296902]
[1725781270862,0.03569159,54655.0,54654.0,1.294902]
[1725781271574,0.03169159,54655.0,54654.0,1.294902]
[1725781271997,0.03269159,54655.0,54654.0,1.308902]
[1725781272468,0.02969159,54655.0,54654.0,1.308902]
[1725781272942,0.03169159,54655.0,54654.0,1.294902]
[1725781273164,0.03269159,54655.0,54654.0,1.308902]
[1725781273375,0.02869159,54655.0,54654.0,1.294902]
[1725781273583,0.02969159,54655.0,54654.0,1.308902]
[1725781274220,0.02969159,54655.0,54654.0,1.294902]
[1725781274221,0.02869159,54655.0,54654.0,1.294902]
[1725781274443,0.02969159,54655.0,54654.0,1.308902]
[1725781274873,0.02969159,54655.0,54654.0,1.322902]
[1725781274874,0.03069159,54655.0,54654.0,1.322902]
[1725781275101,0.13745686,54676.0,54662.0,0.1431]
[1725781275337,0.02868752,54665.0,54664.0,0.063]
[1725781275569,0.02868752,54665.0,54664.0,0.447165]
[1725781275797,0.128027,54676.0,54671.0,0.128038]
[1725781276263,0.128027,54676.0,54671.0,0.127038]
[1725781276488,0.138023,54678.0,54670.0,0.336179]
[1725781276737,0.004,54676.0,54670.0,0.336179]
[1725781276960,0.007,54676.0,54673.0,0.128033]
[1725781277641,0.004,54676.0,54674.0,0.128031]
[1725781277869,0.004,54676.0,54675.0,0.063]
[1725781278088,0.004,54676.0,54675.0,0.191029]
[1725781278306,0.004,54676.0,54673.0,0.128033]
[1725781278525,0.0655,54675.0,54673.0,0.128033]
[1725781279740,0.0655,54675.0,54668.0,0.063]
[1725781279961,0.0655,54675.0,54672.0,0.128036]
[1725781280170,0.0675,54675.0,54672.0,0.128036]
[1725781280393,0.0695,54675.0,54672.0,0.128036]
[1725781280619,0.0695,54675.0,54670.0,0.256081]
[1725781280851,0.0695,54675.0,54671.0,0.128038]
[1725781281077,0.0675,54675.0,54671.0,0.128038]
[1725781281764,0.195529,54675.0,54671.0,0.128038]
[1725781282001,0.22421433,54675.0,54671.0,0.128038]
[1725781282231,0.22221433,54675.0,54671.0,0.128038]
[1725781282456,0.22421433,54675.0,54671.0,0.128038]
[1725781282711,0.22621433,54675.0,54671.0,0.128038]
[1725781282951,0.22421433,54675.0,54671.0,0.128038]
[1725781283179,0.22221433,54675.0,54671.0,0.128038]
[1725781283407,0.09818533,54675.0,54671.0,0.128038]
[1725781284575,0.22621433,54675.0,54671.0,0.128038]
[1725781285710,0.09818533,54675.0,54671.0,0.128038]
[1725781289113,0.22621433,54675.0,54671.0,0.128038]
[1725781291148,0.22702933,54675.0,54671.0,0.128038]
[1725781291847,0.22702933,54675.0,54669.0,0.191041]
[1725781292073,0.22702933,54675.0,54670.0,0.12804]
[1725781292730,0.22702933,54675.0,54663.0,0.0801]
[1725781292731,0.03150033,54675.0,54671.0,0.1381]
[1725781292957,0.02950033,54675.0,54672.0,0.256071]
[1725781293177,0.03350033,54675.0,54672.0,0.256071]
[1725781293402,0.03350033,54675.0,54674.0,0.128031]
[1725781293653,0.03150033,54675.0,54672.0,0.128035]
[1725781293861,0.0633,54674.0,54670.0,0.12804]
[1725781294123,0.0633,54674.0,54671.0,0.128038]
[1725781294767,0.15952933,54675.0,54671.0,0.128038]
[1725781295657,0.15752933,54675.0,54671.0,0.128038]
[1725781295901,0.15952933,54675.0,54671.0,0.128038]
[1725781296349,0.001,54674.0,54671.0,0.128038]
[1725781296768,0.000815,54675.0,54671.0,0.128038]
[1725781296978,0.002815,54675.0,54671.0,0.128038]
[1725781297190,0.007815,54675.0,54671.0,0.128038]
[1725781297402,0.000815,54675.0,54671.0,0.128038]
[1725781297814,0.001,54674.0,54671.0,0.128038]
[1725781298082,0.000815,54675.0,54672.0,0.128035]
[1725781298286,0.002815,54675.0,54672.0,0.128035]
[1725781298960,0.001,54674.0,54672.0,0.128035]
[1725781299336,0.002815,54675.0,54672.0,0.128035]
[1725781299545,0.02868463,54674.0,54672.0,0.128035]
[1725781299785,0.02868463,54674.0,54660.0,0.256128]
[1725781299786,0.0633,54670.0,54660.0,0.256128]
[1725781299973,1.143967,54669.0,54660.0,0.256127]
[1725781300185,0.128053,54665.0,54659.0,0.210364]
[1725781300399,0.256091,54668.0,54662.0,0.128057]
[1725781300595,0.256091,54668.0,54660.0,0.256126]
[1725781300596,0.128051,54666.0,54660.0,0.384189]
[1725781300808,0.128051,54666.0,54661.0,0.128061]
[1725781301016,0.128053,54665.0,54661.0,0.128061]
[1725781301386,0.15673687,54667.0,54661.0,0.128061]
[1725781301611,0.12805,54666.0,54661.0,0.128061]
[1725781303234,0.12805,54666.0,54662.0,0.128059]
[1725781303482,0.12805,54666.0,54661.0,0.006]
[1725781304125,0.02868787,54667.0,54666.0,0.64025]
[1725781304382,0.02868787,54667.0,54666.0,0.78245]
[1725781306107,0.02627933,54668.0,54667.0,0.640237]
[1725781306315,0.000815,54675.0,54673.0,0.128033]
[1725781306535,0.000815,54675.0,54674.0,0.0632]
[1725781306951,0.00059485,54675.0,54674.0,0.0632]
[1725781307380,0.02681797,54675.0,54674.0,0.0632]
[1725781307597,0.02681797,54675.0,54674.0,0.191231]
[1725781308051,0.02681797,54675.0,54674.0,0.447294]
[1725781308968,0.03481797,54675.0,54674.0,0.448294]
[1725781309200,0.03481797,54675.0,54674.0,0.001]
[1725781309419,0.07050102,54675.0,54674.0,0.002]
[1725781312165,0.13700102,54675.0,54674.0,0.002]
[1725781312378,0.92314502,54675.0,54668.0,0.0621]
[1725781312584,0.128034,54673.0,54669.0,0.128042]
[1725781313036,0.28803202,54675.0,54669.0,0.128042]
[1725781313394,0.25003202,54675.0,54669.0,0.128042]
[1725781313628,0.26503202,54675.0,54669.0,0.128042]
[1725781314036,0.26503202,54675.0,54671.0,0.00163]
[1725781314242,0.128034,54673.0,54671.0,0.00163]
[1725781316309,0.133034,54673.0,54671.0,0.00163]
[1725781316528,0.128036,54672.0,54671.0,0.00163]
[1725781316740,0.151036,54672.0,54671.0,0.00263]
[1725781318424,0.151036,54672.0,54671.0,0.00163]
[1725781318638,0.155036,54672.0,54671.0,0.00163]
[1725781319006,0.160036,54672.0,54671.0,0.00163]
[1725781320408,0.280526,54672.0,54671.0,0.00163]
[1725781321669,0.28989242,54672.0,54671.0,0.00163]
[1725781322504,0.15249,54672.0,54671.0,0.00163]
[1725781322733,0.12949,54672.0,54671.0,0.00163]
[1725781322971,0.009,54672.0,54671.0,0.00163]
[1725781323430,0.151987,54672.0,54671.0,0.00163]
[1725781324089,0.009,54672.0,54671.0,0.00163]
[1725781324529,0.14641378,54672.0,54671.0,0.00163]
[1725781324817,0.14641378,54672.0,54671.0,0.129668]
[1725781325043,0.009,54672.0,54671.0,0.06373]
[1725781326588,0.009,54672.0,54671.0,0.191768]
[1725781327223,0.009,54672.0,54671.0,0.06373]
[1725781328485,0.009,54672.0,54670.0,0.12804]
[1725781329620,0.005,54672.0,54669.0,0.128041]
[1725781329867,0.26544478,54674.0,54669.0,0.128041]
[1725781330078,0.009,54672.0,54669.0,0.128041]
[1725781331654,0.005,54672.0,54670.0,0.12804]
[1725781332079,0.009,54672.0,54668.0,0.128044]
[1725781332293,0.009,54672.0,54669.0,0.128041]
[1725781332773,0.023,54673.0,54670.0,0.20314]
[1725781333015,0.009,54672.0,54670.0,0.20314]
[1725781333473,0.009,54672.0,54670.0,0.0751]
[1725781333925,0.004,54672.0,54670.0,0.0751]
[1725781334150,0.023,54673.0,54670.0,0.0751]
[1725781334380,0.023,54673.0,54670.0,0.20314]
[1725781334661,0.029,54673.0,54670.0,0.20314]
[1725781335844,0.004,54672.0,54670.0,0.20314]
[1725781336292,0.005,54672.0,54670.0,0.20314]
[1725781337221,0.023,54673.0,54670.0,0.20314]
[1725781337438,0.004,54672.0,54670.0,0.20314]
[1725781337670,0.009,54672.0,54670.0,0.20314]
[1725781337905,0.009,54672.0,54670.0,0.20477]
[1725781338804,0.005,54672.0,54670.0,0.20477]
[1725781340139,0.009,54672.0,54670.0,0.20477]
[1725781340372,0.009,54672.0,54671.0,0.128038]
[1725781340615,0.009,54672.0,54671.0,0.706292]
[1725781342138,0.005,54672.0,54671.0,0.706292]
[1725781342372,0.009,54672.0,54671.0,0.706292]
[1725781342841,0.009,54672.0,54671.0,0.578254]
[1725781343113,0.009,54672.0,54671.0,0.706292]
[1725781343789,0.004,54672.0,54671.0,0.706292]
[1725781344453,0.009,54672.0,54671.0,0.706292]
[1725781344662,0.009,54672.0,54671.0,0.782192]
[1725781347609,0.009,54672.0,54671.0,0.526115]
[1725781348068,0.009,54672.0,54671.0,0.782192]
[1725781351293,0.13744669,54679.0,54675.0,0.128029]
[1725781351504,0.24238282,54680.0,54675.0,0.128029]
[1725781351727,0.02868292,54676.0,54675.0,0.128029]
[1725781353159,0.02868292,54676.0,54675.0,0.002]
[1725781353832,0.02868292,54676.0,54675.0,0.001]
[1725781354075,0.03668292,54676.0,54675.0,0.001]
[1725781354292,0.03668292,54676.0,54672.0,0.128034]
[1725781354527,0.16970892,54676.0,54675.0,0.001]
[1725781354783,0.128031,54675.0,54670.0,0.139669]
[1725781354993,0.128032,54674.0,54670.0,0.139669]
[1725781355918,0.128032,54674.0,54672.0,0.001]
[1725781356402,0.128039,54671.0,54666.0,0.129679]
[1725781356619,0.256059,54675.0,54661.0,0.0608]
[1725781356620,0.0655,54666.0,54661.0,0.0608]
[1725781356831,0.128053,54665.0,54661.0,0.0608]
[1725781357040,0.128053,54665.0,54660.0,0.128063]
[1725781357299,0.15673997,54665.0,54660.0,0.128063]
[1725781357735,0.15673997,54665.0,54659.0,0.1631]
[1725781357736,0.15673997,54665.0,54661.0,0.128061]
[1725781357990,0.02868697,54665.0,54662.0,0.128059]
[1725781358697,0.15673997,54665.0,54661.0,0.131061]
[1725781359594,0.15673997,54665.0,54661.0,0.128061]
[1725781359852,0.15673997,54665.0,54660.0,0.004]
[1725781360068,0.15673997,54665.0,54661.0,0.004]
[1725781360500,0.15673997,54665.0,54661.0,0.008]
[1725781360707,0.02868697,54665.0,54661.0,0.136061]
[1725781360917,0.02868697,54665.0,54661.0,0.132061]
[1725781361375,0.02868697,54665.0,54661.0,0.128061]
[1725781362087,0.02868697,54665.0,54660.0,0.004]
[1725781362304,0.02868697,54665.0,54661.0,0.128061]
[1725781362758,0.02868697,54665.0,54661.0,0.132691]
[1725781362993,0.02868697,54665.0,54661.0,0.129691]
[1725781363234,0.02868697,54665.0,54661.0,0.00163]
[1725781363447,0.02868697,54665.0,54663.0,0.128056]
[1725781365281,0.02868697,54665.0,54664.0,0.128055]
[1725781365705,0.02868697,54665.0,54662.0,0.256117]
[1725781365915,0.02868697,54665.0,54663.0,0.128056]
[1725781366125,0.02868697,54665.0,54663.0,0.130056]
[1725781366331,0.02868697,54665.0,54663.0,0.128056]
[1725781366745,0.02868697,54665.0,54664.0,0.002]
[1725781366958,0.02868697,54665.0,54663.0,0.128056]
[1725781367166,0.02868697,54665.0,54663.0,0.130056]
[1725781367377,0.02868697,54665.0,54663.0,0.132056]
[1725781367598,0.02868697,54665.0,54663.0,0.128056]
[1725781367801,0.02868697,54665.0,54661.0,0.00163]
[1725781368023,0.02868697,54665.0,54664.0,0.001]
[1725781368445,0.02868697,54665.0,54662.0,0.128058]
[1725781368902,0.02868697,54665.0,54663.0,0.002]
[1725781370202,0.02868697,54665.0,54663.0,0.128057]
[1725781370418,0.02868697,54665.0,54664.0,0.002]
[1725781371043,0.02868697,54665.0,54662.0,0.128059]
[1725781371473,0.02868697,54665.0,54663.0,0.002]
[1725781372132,0.02868697,54665.0,54662.0,0.128059]
[1725781372979,0.02868697,54665.0,54663.0,0.002]
[1725781373413,0.02868697,54665.0,54662.0,0.130059]
[1725781373617,0.02868697,54665.0,54662.0,0.132059]
[1725781374029,0.02868697,54665.0,54662.0,0.128059]
[1725781374241,0.02868697,54665.0,54663.0,0.004]
[1725781374599,0.02868697,54665.0,54663.0,0.00363]
[1725781374806,0.02868697,54665.0,54663.0,0.00163]
[1725781375001,0.128051,54666.0,54663.0,0.00163]
[1725781376672,0.128051,54666.0,54663.0,0.00363]
[1725781377125,0.128051,54666.0,54663.0,0.00563]
[1725781377562,0.256094,54668.0,54663.0,0.00163]
[1725781377563,0.191254,54665.0,54663.0,0.00163]
[1725781377935,0.191254,54665.0,54663.0,0.00263]
[1725781378360,0.128055,54664.0,54663.0,0.00263]
[1725781378574,0.0632,54665.0,54663.0,0.00163]
[1725781380243,0.191253,54665.0,54663.0,0.00163]
[1725781380465,0.193254,54665.0,54663.0,0.00163]
[1725781380682,0.193254,54665.0,54663.0,0.00263]
[1725781381124,0.193254,54665.0,54663.0,0.00163]
[1725781381376,0.191254,54665.0,54663.0,0.00163]
[1725781381583,0.192254,54665.0,54663.0,0.00163]
[1725781382656,0.195254,54665.0,54663.0,0.00163]
[1725781383096,0.192254,54665.0,54663.0,0.00163]
[1725781383526,0.194254,54665.0,54663.0,0.00163]
[1725781384172,0.0662,54665.0,54663.0,0.00163]
[1725781384388,0.003,54665.0,54663.0,0.00163]
[1725781385024,0.15974156,54665.0,54663.0,0.00163]
[1725781385265,0.128055,54664.0,54663.0,0.00163]
[1725781386139,0.003,54665.0,54663.0,0.00163]
[1725781386344,0.001,54665.0,54663.0,0.00163]
[1725781386557,0.51222,54664.0,54663.0,0.00163]
[1725781386763,0.51322,54664.0,54663.0,0.00163]
[1725781387144,0.641275,54664.0,54663.0,0.00163]
[1725781389395,0.66996302,54664.0,54663.0,0.00163]
[1725781391206,0.66996302,54664.0,54661.0,0.00163]
[1725781391409,0.384178,54662.0,54661.0,0.00163]
[1725781392054,0.640297,54662.0,54661.0,0.00163]
[1725781392418,0.384178,54662.0,54661.0,0.00163]
[1725781392841,0.384178,54662.0,54661.0,0.00363]
[1725781393740,0.640297,54662.0,54661.0,0.00163]
[1725781393930,0.641297,54662.0,54661.0,0.00163]
[1725781394177,0.641297,54662.0,54654.0,0.00163]
[1725781394178,0.0668,54662.0,54654.0,0.05741]
[1725781394339,0.384249,54652.0,54651.0,0.00163]
[1725781394624,0.0658,54654.0,54647.0,0.01]
[1725781394625,0.128092,54648.0,54647.0,0.01]
[1725781395100,0.384277,54648.0,54647.0,0.01]
[1725781395533,0.128092,54648.0,54647.0,0.01]
[1725781396808,0.15527489,54648.0,54647.0,0.01]
[1725781397248,0.15627489,54648.0,54647.0,0.0803]
[1725781397481,0.66864489,54648.0,54647.0,0.008]
[1725781397699,0.66864489,54648.0,54645.0,0.00163]
[1725781397700,0.384291,54646.0,54645.0,0.00163]
[1725781397915,1.834755,54646.0,54645.0,0.00163]
[1725781398126,0.128113,54639.0,54638.0,0.06393]
[1725781400336,0.129113,54639.0,54638.0,0.07993]
[1725781400839,0.128113,54639.0,54638.0,0.06593]
[1725781401280,0.128113,54639.0,54638.0,0.06793]
[1725781401484,0.15681171,54639.0,54638.0,0.06793]
[1725781402799,0.02869871,54639.0,54638.0,0.06793]
[1725781403657,0.15681171,54639.0,54638.0,0.06793]
[1725781403890,0.15681171,54639.0,54638.0,0.00563]
[1725781404134,0.18397783,54639.0,54638.0,0.00563]
[1725781404412,0.41303871,54639.0,54638.0,0.00563]
[1725781404629,0.384375,54634.0,54633.0,0.00163]
[1725781404861,1.20834,54634.0,54633.0,0.00163]
[1725781405077,1.316824,54634.0,54633.0,0.00163]
[1725781405287,1.573074,54634.0,54633.0,0.00163]
[1725781405762,1.096497,54634.0,54633.0,0.00163]
[1725781406822,1.352747,54634.0,54633.0,0.00163]
[1725781408142,0.84344,54634.0,54633.0,0.00263]
[1725781408356,0.90794,54634.0,54633.0,0.00263]
[1725781408569,0.86474,54634.0,54633.0,0.00263]
[1725781408779,0.672625,54634.0,54633.0,0.00263]
[1725781409443,0.682625,54634.0,54633.0,0.00363]
[1725781414920,0.5545,54634.0,54633.0,0.00363]
[1725781415120,0.682625,54634.0,54633.0,0.00363]
[1725781417291,1.001675,54634.0,54633.0,0.00363]
[1725781417498,1.001675,54634.0,54625.0,0.0832]
[1725781417499,0.384432,54626.0,54625.0,0.0832]
[1725781417714,0.384438,54625.0,54624.0,0.01]
[1725781417947,0.687564,54625.0,54624.0,0.01]
[1725781419497,0.71627109,54625.0,54624.0,0.01]
[1725781420003,0.71627109,54625.0,54624.0,0.011]
[1725781420431,0.71627109,54625.0,54624.0,0.012]
[1725781420614,0.71627109,54625.0,54624.0,0.011]
[1725781421061,0.72127109,54625.0,54624.0,0.01]
[1725781421267,0.71627109,54625.0,54624.0,0.01]
[1725781421491,0.72127109,54625.0,54624.0,0.01]
[1725781422744,0.72627109,54625.0,54624.0,0.01]
[1725781423841,0.72627109,54625.0,54624.0,0.011632]
[1725781424786,0.80276709,54625.0,54624.0,0.011632]
[1725781425200,0.77716709,54625.0,54624.0,0.011632]
[1725781425408,0.16685309,54625.0,54624.0,0.011632]
[1725781425616,0.03870709,54625.0,54624.0,0.011632]
[1725781426014,0.03870709,54625.0,54624.0,0.28238]
[1725781426246,0.01,54625.0,54624.0,0.28238]
[1725781426850,0.12814,54628.0,54624.0,0.28238]
[1725781427239,0.003,54625.0,54624.0,0.28238]
[1725781427476,0.001,54625.0,54624.0,0.28238]
[1725781427683,0.256266,54631.0,54624.0,0.28238]
[1725781427920,0.003,54628.0,54624.0,0.28338]
[1725781428123,0.131139,54628.0,54624.0,0.28238]
[1725781428587,0.131139,54628.0,54624.0,0.28438]
[1725781428795,0.131139,54628.0,54624.0,0.28238]
[1725781429453,0.15684312,54628.0,54624.0,0.28238]
[1725781429908,0.02870412,54628.0,54627.0,0.128141]
[1725781430122,0.02870412,54628.0,54627.0,0.272441]
[1725781430337,0.03070412,54628.0,54627.0,0.272441]
[1725781430540,0.02870412,54628.0,54627.0,0.272441]
[1725781430999,0.02870412,54628.0,54627.0,0.1443]
[1725781433649,0.02870412,54628.0,54627.0,0.1453]
[1725781434071,0.02870412,54628.0,54627.0,0.1463]
[1725781436242,0.128138,54629.0,54627.0,0.1463]
[1725781437124,0.320752,54634.0,54627.0,0.07758429]
[1725781437125,0.384417,54628.0,54627.0,0.07758429]
[1725781437370,0.384417,54628.0,54627.0,0.001]
[1725781437616,0.384417,54628.0,54624.0,0.011632]